Company Name,Sub Group,Service Area's,Expense Type,Narrative,Date,Transaction Number,Amount,Supplier Name,Supplier Ref,Period,Year
Allerdale Borough Council,15506,Supplies & Services,Legal Services,Professional Services,03/10/2018,408863,825.92,PG LEGAL LTD,A02534,7,2018
Allerdale Borough Council,20300,Third Party Payments,Parks and Grounds Maintenance,Budget-Contract Services,24/10/2018,408864,56935.33,TIVOLI GROUP LTD,A02568,7,2018
Allerdale Borough Council,10114,Employee Costs,Democratic Services Pay Group,Agency to Cover Established Post,03/10/2018,408865,549.9,SYSTEM PEOPLE LTD,A01679,7,2018
Allerdale Borough Council,20150,Third Party Payments,Corporate Property Maintenance,General Partnership Service Fees,10/10/2018,408866,271.14,ORIAN SOLUTIONS LTD,A01814,7,2018
Allerdale Borough Council,15101,Supplies & Services,Recycling,Equipment Costs,03/10/2018,408867,250,J DUFFY LTD ,A01846,7,2018
Allerdale Borough Council,10601,Employee Costs,Solway Coast AONB Core Funding,External Courses & Seminar Fees,03/10/2018,408868,49,NAAONB,A00735,7,2018
Allerdale Borough Council,12302,Premises,Solway Coast AONB Core Funding,Building Cleaning,10/10/2018,408869,109.48,ORIAN SOLUTIONS LTD,A01814,7,2018
Allerdale Borough Council,12101,Premises,Environmental Initiatives,External Maintenance & Decoration,03/10/2018,408870,986,TIVOLI GROUP LTD,A02568,7,2018
Allerdale Borough Council,15400,Supplies & Services,Planning Policy,"Budget-Printing,Stationery & Office Supp",03/10/2018,408871,205.05,HEATONS OFFICE SOLUTION ,A00069,7,2018
Allerdale Borough Council,10401,Employee Costs,Customer Services Pay Group,Agency Staff Costs,03/10/2018,408872,592,ADECCO RECRUITMENT,A00188,7,2018
Allerdale Borough Council,15100,Supplies & Services,Off-street - Owned,"Budget-Equipment, Furniture & Materials",03/10/2018,408873,352.5,METRIC GROUP LTD,A00568,7,2018
Allerdale Borough Council,15101,Supplies & Services,Off-street - Owned,Equipment Costs,03/10/2018,408874,3790.07,METRIC GROUP LTD,A00568,7,2018
Allerdale Borough Council,15101,Supplies & Services,Off-street - Owned,Equipment Costs,03/10/2018,408875,163.5,METRIC GROUP LTD,A00568,7,2018
Allerdale Borough Council,16350,Supplies & Services,Off-street - Owned,Miscellaneous Expenses,03/10/2018,408876,1398,3C PAYMENT LIMITED,A02382,7,2018
Allerdale Borough Council,15501,Supplies & Services,Street Cleansing,Consultants Fees,03/10/2018,408877,12,DUNDAS CHEMICAL CO,A00175,7,2018
Allerdale Borough Council,15501,Supplies & Services,Homelessness,Consultants Fees,03/10/2018,408878,30,MARYPORT HEALTH SERVICE,A00421,7,2018
Allerdale Borough Council,12201,Premises,Off-street - Owned,Internal Maintenance,03/10/2018,408879,470,Redacted information - included personal information ,C00008,7,2018
Allerdale Borough Council,15601,Supplies & Services,Corporate Postage and Stationary,Postage,03/10/2018,408880,531.24,UK MAIL GROUP PLC,A02371,7,2018
Allerdale Borough Council,12101,Premises,Coastal Protection and Inland Flooding,External Maintenance & Decoration,03/10/2018,408881,4278,ASHCROFT PLANT (CUMBRIA) LTD,C00018,7,2018
Allerdale Borough Council,12305,Premises,Corporate Property Maintenance,Inspections and Services,10/10/2018,408882,237,AQUAID (NORTH),A00123,7,2018
Allerdale Borough Council,15405,Supplies & Services,Planning Policy,Use of External Printers,03/10/2018,408883,1690,FIRPRESS PRINTERS,A00063,7,2018
Allerdale Borough Council,10601,Employee Costs,Training,External Courses & Seminar Fees,03/10/2018,408884,25,CARLISLE CITY COUNCIL,A00161,7,2018
Allerdale Borough Council,15501,Supplies & Services,Planning Policy,Consultants Fees,24/10/2018,408885,6466,WYG ENVIRONMENT PLANNING TRANSPORT LTD,A01785,7,2018
Allerdale Borough Council,54105,Capital Expenditure,Discretionary Grants,Grants  Private Individuals (Capital),03/10/2018,408886,-1,L.E.A. BUILDING SERVICES LTD,X00264,7,2018
Allerdale Borough Council,33104,Income,Bereavement Services,Cemetery Granting of Burial Right Income,03/10/2018,408887,83,Redacted information - included personal information ,M01472,7,2018
Allerdale Borough Council,21150,Transfer Payments,Festivals & Events,General Grants,03/10/2018,408888,990,KESWICK VICTORIAN FAYRE,M00620,7,2018
Allerdale Borough Council,54105,Capital Expenditure,Disabled Facilities Grants,Grants  Private Individuals (Capital),03/10/2018,408889,7305.39,L.E.A. BUILDING SERVICES LTD,X00264,7,2018
Allerdale Borough Council,54105,Capital Expenditure,Disabled Facilities Grants,Grants  Private Individuals (Capital),03/10/2018,408890,11304.76,L.E.A. BUILDING SERVICES LTD,X00264,7,2018
Allerdale Borough Council,54105,Capital Expenditure,Disabled Facilities Grants,Grants  Private Individuals (Capital),03/10/2018,408891,3445.36,PARTNERSHIP IN PROPERTY MANAGEMENT LTD,X00120,7,2018
Allerdale Borough Council,54105,Capital Expenditure,Disabled Facilities Grants,Grants  Private Individuals (Capital),03/10/2018,408892,2875,K BAILIFF & SON LIMITED,X00116,7,2018
Allerdale Borough Council,54105,Capital Expenditure,Disabled Facilities Grants,Grants  Private Individuals (Capital),03/10/2018,408893,3745.5,BLUE FLAME SERVICES LTD,X00213,7,2018
Allerdale Borough Council,54105,Capital Expenditure,Disabled Facilities Grants,Grants  Private Individuals (Capital),03/10/2018,408894,17437.47,K BAILIFF & SON LIMITED,X00116,7,2018
Allerdale Borough Council,20113,Third Party Payments,Community Safety - Funded,Other Agencies,03/10/2018,408895,6000,CUMBRIA YOUTH ALLIANCE,M00704,7,2018
Allerdale Borough Council,15506,Supplies & Services,Museums,Professional Services,24/10/2018,408896,1500,ARTLINK TRANSPORT & STORAGE LTD,A02362,7,2018
Allerdale Borough Council,10601,Employee Costs,Training,External Courses & Seminar Fees,03/10/2018,408897,400,CCMA VENTURES LTD,A02596,7,2018
Allerdale Borough Council,10202,Employee Costs,Human Resources Pay Group,Medical Screening,03/10/2018,408898,573,SUNDERLAND CITY COUNCIL,A00979,7,2018
Allerdale Borough Council,10202,Employee Costs,Human Resources Pay Group,Medical Screening,03/10/2018,408899,1060,SUNDERLAND CITY COUNCIL,A00979,7,2018
Allerdale Borough Council,10202,Employee Costs,Human Resources Pay Group,Medical Screening,03/10/2018,408900,575,SUNDERLAND CITY COUNCIL,A00979,7,2018
Allerdale Borough Council,10202,Employee Costs,Human Resources Pay Group,Medical Screening,03/10/2018,408901,1080,SUNDERLAND CITY COUNCIL,A00979,7,2018
Allerdale Borough Council,10401,Employee Costs,Land Charges Service,Agency Staff Costs,03/10/2018,408902,440.44,ADECCO RECRUITMENT,A00188,7,2018
Allerdale Borough Council,26000,Earmarked Reserves,Community Safety - Funded,Budget-Expd funded from Reserve,03/10/2018,408903,165,CRS FACILITY MANAGEMENT LTD,A02579,7,2018
Allerdale Borough Council,15507,Supplies & Services,Land Charges Service,Searches,03/10/2018,408904,506,CUMBRIA CC,A00066,7,2018
Allerdale Borough Council,15303,Supplies & Services,Food and Occupational Health,Laundry,03/10/2018,408905,10,THE LAUNDRY STUDIO,A00225,7,2018
Allerdale Borough Council,10401,Employee Costs,Land Charges Service,Agency Staff Costs,03/10/2018,408906,552.41,ADECCO RECRUITMENT,A00188,7,2018
Allerdale Borough Council,15506,Supplies & Services,Major Incident Response,Professional Services,03/10/2018,408907,6087.17,CRS FACILITY MANAGEMENT LTD,A02579,7,2018
Allerdale Borough Council,51101,Capital Expenditure,Housing Improvement Projects,External Contractor Payments (Capital),03/10/2018,408908,841,ASHCROFT PLANT (CUMBRIA) LTD,C00018,7,2018
Allerdale Borough Council,15501,Supplies & Services,Building Control - Non-Chargeable,Consultants Fees,03/10/2018,408909,1005,ASHCROFT PLANT (CUMBRIA) LTD,C00018,7,2018
Allerdale Borough Council,15101,Supplies & Services,Off-street - Owned,Equipment Costs,17/10/2018,408910,87.12,RELIANCE HIGH-TECH LTD,C00123,7,2018
Allerdale Borough Council,15506,Supplies & Services,Corporate Transformation,Professional Services,03/10/2018,408911,3556.56,INVISIBLE SYSTEMS LTD,A02539,7,2018
Allerdale Borough Council,15203,Supplies & Services,Solway Coast AONB Core Funding,Catering Costs and Consumables,03/10/2018,408912,70.84,THE GOLF HOTEL,A00749,7,2018
Allerdale Borough Council,14202,Transport,Chief Executive,Hire Car and petrol,03/10/2018,408913,85.91,ENTERPRISE RENT A CAR,A01367,7,2018
Allerdale Borough Council,20300,Third Party Payments,Parks and Grounds Maintenance,Budget-Contract Services,24/10/2018,408914,341.74,TIVOLI GROUP LTD,A02568,7,2018
Allerdale Borough Council,14101,Transport,Mayoral Services,Vehicle Leasing,03/10/2018,408915,160,DJH SILLOTH LTD ,M00890,7,2018
Allerdale Borough Council,14101,Transport,Mayoral Services,Vehicle Leasing,03/10/2018,408916,100,DJH SILLOTH LTD,M00890,7,2018
Allerdale Borough Council,15601,Supplies & Services,Electoral Registration,Postage,03/10/2018,408917,525,ROYAL MAIL LETTERS,X00021,7,2018
Allerdale Borough Council,10110,Employee Costs,Housing & Health Pay Group,Salary Sacrifice,17/10/2018,408918,-520.81,TUSKERDIRECT LTD,A02186,7,2018
Allerdale Borough Council,12402,Premises,Tenanted Properties,Electricity,03/10/2018,408919,24,ENGIE POWER LIMITED ,X00286,7,2018
Allerdale Borough Council,15804,Supplies & Services,IT Services,Computer Data Lines B.T.,03/10/2018,408920,308.46,BRITISH TELECOMMUNICATIONS,X00004,7,2018
Allerdale Borough Council,15702,Supplies & Services,IT Services,Line Rentals,03/10/2018,408921,269.91,BRITISH TELECOMMUNICATIONS,X00004,7,2018
Allerdale Borough Council,54105,Capital Expenditure,Healthy Homes,Grants  Private Individuals (Capital),03/10/2018,408922,4020.24,Redacted information - included personal information ,X00288,7,2018
Allerdale Borough Council,16350,Supplies & Services,Leaders Portfolio,Miscellaneous Expenses,03/10/2018,408923,1500,BOLTON D C C,M01475,7,2018
Allerdale Borough Council,33118,Income,Off-street - Owned,Car Parks - Season Tickets Income,03/10/2018,408924,3.2,Redacted information - included personal information ,M01473,7,2018
Allerdale Borough Council,33121,Income,Off-street - Owned,Excess Charges - Car Parks Income,03/10/2018,408925,25,Redacted information - included personal information ,M01474,7,2018
Allerdale Borough Council,16350,Supplies & Services,Homelessness,Miscellaneous Expenses,03/10/2018,408926,680,Redacted information - included personal information ,M01476,7,2018
Allerdale Borough Council,54105,Capital Expenditure,Discretionary Grants,Grants  Private Individuals (Capital),03/10/2018,408927,22669.08,K BAILIFF & SON LIMITED,X00116,7,2018
Allerdale Borough Council,54105,Capital Expenditure,Discretionary Grants,Grants  Private Individuals (Capital),03/10/2018,408928,3740,DOLPHIN STAIRLIFTS CUMBRIA,X00107,7,2018
Allerdale Borough Council,54105,Capital Expenditure,Discretionary Grants,Grants  Private Individuals (Capital),03/10/2018,408929,6014.04,FEARON BUILDERS,C00069,7,2018
Allerdale Borough Council,54105,Capital Expenditure,Disabled Facilities Grants,Grants  Private Individuals (Capital),03/10/2018,408930,18677.25,FEARON BUILDERS,C00069,7,2018
Allerdale Borough Council,33113,Income,Building Control - Chargeable,Building Control Fees Income,03/10/2018,408931,487.5,Redacted information - included personal information ,M01477,7,2018
Allerdale Borough Council,33112,Income,Planning and Development,Planning Fees Income,03/10/2018,408932,254,Redacted information - included personal information ,M01478,7,2018
Allerdale Borough Council,15101,Supplies & Services,Solway Coast AONB Core Funding,Equipment Costs,,408933,760.37,BARCLAYCARD COMMERCIAL,X00207,7,2018
Allerdale Borough Council,15101,Supplies & Services,Corporate Property Maintenance,Equipment Costs,,408934,898,BARCLAYCARD COMMERCIAL ,X00207,7,2018
Allerdale Borough Council,15506,Supplies & Services,Universal Credit,Professional Services,03/10/2018,408935,200,CITIZENS ADVICE BUREAU,A01181,7,2018
Allerdale Borough Council,26000,Earmarked Reserves,Corporate Priorities,Budget-Expd funded from Reserve,03/10/2018,408936,673.88,FLIMBY SAXHORN SILVER BAND,M01351,7,2018
Allerdale Borough Council,21150,Transfer Payments,Shop Front Improvements,General Grants,03/10/2018,408937,842,Redacted information - included personal information ,M01479,7,2018
Allerdale Borough Council,21150,Transfer Payments,Shop Front Improvements,General Grants,03/10/2018,408938,468,Redacted information - included personal information ,M01480,7,2018
Allerdale Borough Council,21150,Transfer Payments,Shop Front Improvements,General Grants,03/10/2018,408939,482,Redacted information - included personal information ,M01481,7,2018
Allerdale Borough Council,21150,Transfer Payments,Shop Front Improvements,General Grants,03/10/2018,408940,810,Redacted information - included personal information ,M01481,7,2018
Allerdale Borough Council,21150,Transfer Payments,Shop Front Improvements,General Grants,03/10/2018,408941,900,Redacted information - included personal information ,M01482,7,2018
Allerdale Borough Council,21150,Transfer Payments,Shop Front Improvements,General Grants,03/10/2018,408942,900,Redacted information - included personal information ,M01483,7,2018
Allerdale Borough Council,21150,Transfer Payments,Shop Front Improvements,General Grants,03/10/2018,408943,900,Redacted information - included personal information ,M01484,7,2018
Allerdale Borough Council,20300,Third Party Payments,Parks and Grounds Maintenance,Budget-Contract Services,03/10/2018,408944,1356,TIVOLI GROUP LTD,A02568,7,2018
Allerdale Borough Council,15516,Supplies & Services,Insurances,Insurance Services,10/10/2018,408945,7070.76,JELF INSURANCE BROKERS LTD,A02549,7,2018
Allerdale Borough Council,15602,Supplies & Services,Housing & Health Pay Group,Business Reply Licences,03/10/2018,408946,9.43,ROYAL MAIL LETTERS,X00021,7,2018
Allerdale Borough Council,12201,Premises,MSCP Utilities & Maint fund,Internal Maintenance,03/10/2018,408947,846,Redacted information - included personal information ,C00008,7,2018
Allerdale Borough Council,16150,Supplies & Services,Solway Coast AONB Core Funding,General Promotions,,408948,738.61,BARCLAYCARD COMMERCIAL ,X00207,7,2018
Allerdale Borough Council,16350,Supplies & Services,Homelessness,Miscellaneous Expenses,03/10/2018,408949,700,Redacted information - included personal information ,M01485,7,2018
Allerdale Borough Council,15403,Supplies & Services,Communications and Marketing,Publications and Periodicals,10/10/2018,408950,123.3,P & D NEWSAGENTS,A00237,7,2018
Allerdale Borough Council,33118,Income,Off-street - Owned,Car Parks - Season Tickets Income,10/10/2018,408951,7.4,Redacted information - included personal information ,M01486,7,2018
Allerdale Borough Council,10114,Employee Costs,Democratic Services Pay Group,Agency to Cover Established Post,10/10/2018,408952,549.9,SYSTEM PEOPLE LTD,A01679,7,2018
Allerdale Borough Council,15506,Supplies & Services,Localities & Partnerships,Professional Services,24/10/2018,408953,7565,NWA SOCIAL & MARKET RESEARCH LTD,A02082,7,2018
Allerdale Borough Council,15403,Supplies & Services,Chief Executive,Publications and Periodicals,10/10/2018,408954,14.4,P & D NEWSAGENTS,A00237,7,2018
Allerdale Borough Council,10601,Employee Costs,Training,External Courses & Seminar Fees,10/10/2018,408955,225,CENTRE FOR LEADERSHIP PERFORMANCE,A01504,7,2018
Allerdale Borough Council,16101,Supplies & Services,Planning and Development,Statutory Notices,10/10/2018,408956,369.04,CUMBRIAN NEWSPAPERS LIMITED,A00869,7,2018
Allerdale Borough Council,12405,Premises,Customer Services Pay Group,Rentals and Lease Charges,10/10/2018,408957,1750,COCKERMOUTH TOWN COUNCIL,A00586,7,2018
Allerdale Borough Council,16101,Supplies & Services,Planning and Development,Statutory Notices,10/10/2018,408958,444.09,CUMBRIAN NEWSPAPERS LIMITED,A00869,7,2018
Allerdale Borough Council,16101,Supplies & Services,Planning and Development,Statutory Notices,10/10/2018,408959,250.58,CUMBRIAN NEWSPAPERS LIMITED,A00869,7,2018
Allerdale Borough Council,16101,Supplies & Services,Planning and Development,Statutory Notices,10/10/2018,408960,285.67,CUMBRIAN NEWSPAPERS LIMITED,A00869,7,2018
Allerdale Borough Council,14101,Transport,Mayoral Services,Vehicle Leasing,10/10/2018,408961,80,DJH SILLOTH LTD T/A SOLWAY PRIVATE HIRE,M00890,7,2018
Allerdale Borough Council,15503,Supplies & Services,Revenue,Court and Tribunal Costs,10/10/2018,408962,329.5,HMCTS - WEST CUMBRIA COURT HOUSE,A00275,7,2018
Allerdale Borough Council,15506,Supplies & Services,Assistance - Housing Services,Professional Services,10/10/2018,408963,66.67,KEVIN DICKINSON UPVC LTD,X00131,7,2018
Allerdale Borough Council,15101,Supplies & Services,Housing Strategic Function,Equipment Costs,24/10/2018,408964,99,FERRET INFORMATION SYSTEMS LTD,A02057,7,2018
Allerdale Borough Council,14150,Transport,Gates Travel,General-Council Vehicles (Non-Capital),24/10/2018,408965,1882.61,GATES TRAVEL,A01525,7,2018
Allerdale Borough Council,52106,Capital Expenditure,Solway coast multi-user pathway,Consultants Fees (Capital),10/10/2018,408966,12930,BLOOM PROCUREMENT SERVICES LTD,A02360,7,2018
Allerdale Borough Council,10601,Employee Costs,Housing & Health Pay Group,External Courses & Seminar Fees,24/10/2018,408967,99,NORTHERN HOUSING CONSORTIUM LIMITED,A00260,7,2018
Allerdale Borough Council,15405,Supplies & Services,Recycling,Use of External Printers,10/10/2018,408968,680,FIRPRESS PRINTERS,A00063,7,2018
Allerdale Borough Council,14202,Transport,Chief Executive,Hire Car and petrol,10/10/2018,408969,96.97,ENTERPRISE RENT A CAR,A01367,7,2018
Allerdale Borough Council,15400,Supplies & Services,Planning Policy,"Budget-Printing,Stationery & Office Supp",10/10/2018,408970,25.5,FIRPRESS PRINTERS,A00063,7,2018
Allerdale Borough Council,16302,Supplies & Services,Localities & Partnerships,Room Hire,10/10/2018,408971,43.75,SOLWAY PLAIN FUTURES LTD,A01194,7,2018
Allerdale Borough Council,15101,Supplies & Services,Public Building Cleaning,Equipment Costs,10/10/2018,408972,86.01,WF HYGIENE & CLEANING SUPPLIES,A01794,7,2018
Allerdale Borough Council,15101,Supplies & Services,Homelessness,Equipment Costs,17/10/2018,408973,22.39,ARGOS BUSINESS SOLUTION-STORE COLLECTION,A00411,7,2018
Allerdale Borough Council,15601,Supplies & Services,Corporate Postage and Stationary,Postage,10/10/2018,408974,40,ROYAL MAIL LETTERS,X00021,7,2018
Allerdale Borough Council,26000,Earmarked Reserves,Festivals & Community Events,Budget-Expd funded from Reserve,10/10/2018,408975,238.79,Redacted information - included personal information ,M01487,7,2018
Allerdale Borough Council,20150,Third Party Payments,Footways,General Partnership Service Fees,10/10/2018,408976,260,Redacted information - included personal information ,A00242,7,2018
Allerdale Borough Council,26000,Earmarked Reserves,Comms & Marketing,Budget-Expd funded from Reserve,10/10/2018,408977,813.6,A-HA DISTRIBUTION LTD,A01329,7,2018
Allerdale Borough Council,16350,Supplies & Services,Health & Well-being Group,Miscellaneous Expenses,,408978,53.5,BARCLAYCARD COMMERCIAL ,X00207,7,2018
Allerdale Borough Council,16001,Supplies & Services,Banking and Interest,Bank Charges and Fees,10/10/2018,408979,16.27,ALLPAY.NET LIMITED,A00714,7,2018
Allerdale Borough Council,16001,Supplies & Services,Banking and Interest,Bank Charges and Fees,10/10/2018,408980,21.63,ALLPAY.NET LIMITED,A00714,7,2018
Allerdale Borough Council,16001,Supplies & Services,Banking and Interest,Bank Charges and Fees,10/10/2018,408981,39.95,ALLPAY.NET LIMITED,A00714,7,2018
Allerdale Borough Council,16001,Supplies & Services,Banking and Interest,Bank Charges and Fees,10/10/2018,408982,28.33,ALLPAY.NET LIMITED,A00714,7,2018
Allerdale Borough Council,16001,Supplies & Services,Banking and Interest,Bank Charges and Fees,10/10/2018,408983,1561.31,ALLPAY.NET LIMITED,A00714,7,2018
Allerdale Borough Council,16001,Supplies & Services,Banking and Interest,Bank Charges and Fees,10/10/2018,408984,60.57,ALLPAY.NET LIMITED,A00714,7,2018
Allerdale Borough Council,12405,Premises,Homelessness,Rentals and Lease Charges,10/10/2018,408985,6007.3,CASTLES & COASTS HOUSING ASSOCIATION LTD,A02465,7,2018
Allerdale Borough Council,16001,Supplies & Services,Banking and Interest,Bank Charges and Fees,10/10/2018,408986,15.82,ALLPAY.NET LIMITED,A00714,7,2018
Allerdale Borough Council,16001,Supplies & Services,Banking and Interest,Bank Charges and Fees,10/10/2018,408987,15.82,ALLPAY.NET LIMITED,A00714,7,2018
Allerdale Borough Council,16001,Supplies & Services,Banking and Interest,Bank Charges and Fees,10/10/2018,408988,19.39,ALLPAY.NET LIMITED,A00714,7,2018
Allerdale Borough Council,16001,Supplies & Services,Banking and Interest,Bank Charges and Fees,10/10/2018,408989,17.63,ALLPAY.NET LIMITED,A00714,7,2018
Allerdale Borough Council,15401,Supplies & Services,Corporate Postage and Stationary,General Stationery,24/10/2018,408990,136.12,LYRECO,A00043,7,2018
Allerdale Borough Council,20101,Third Party Payments,Public Convenience Cleaning,Cleansing Contract,10/10/2018,408991,200,Redacted information - included personal information ,A00209,7,2018
Allerdale Borough Council,15506,Supplies & Services,Universal Credit,Professional Services,10/10/2018,408992,20,CITIZENS ADVICE BUREAU,A01181,7,2018
Allerdale Borough Council,12405,Premises,Customer Services Pay Group,Rentals and Lease Charges,10/10/2018,408993,591.94,SOLWAY PLAIN FUTURES LTD,A01194,7,2018
Allerdale Borough Council,10204,Employee Costs,Allerdale Options,Staff Reward Payments,10/10/2018,408994,97.5,CARNEGIE THEATRE TRUST,R00015,7,2018
Allerdale Borough Council,10204,Employee Costs,Allerdale Options,Staff Reward Payments,10/10/2018,408995,10,CARNEGIE THEATRE TRUST,R00015,7,2018
Allerdale Borough Council,12101,Premises,Street Naming and Numbering,External Maintenance & Decoration,10/10/2018,408996,298,Redacted information - included personal information ,A00176,7,2018
Allerdale Borough Council,10604,Employee Costs,Solway Coast AONB Core Funding,Hire of Training Rooms/Venues,10/10/2018,408997,20,SILLOTH MUSIC & BEER FESTIVAL,A02598,7,2018
Allerdale Borough Council,12306,Premises,Public Convenience Cleaning,Legionella Inspections and Services,24/10/2018,408998,1127,CLEARWATER TECHNOLOGY,A02153,7,2018
Allerdale Borough Council,15506,Supplies & Services,Off-street - Owned,Professional Services,10/10/2018,408999,26,CHIPSIDE LIMITED,A00004,7,2018
Allerdale Borough Council,33118,Income,Off-street - Owned,Car Parks - Season Tickets Income,10/10/2018,409000,3.2,Redacted information - included personal information ,M01488,7,2018
Allerdale Borough Council,16350,Supplies & Services,Allerdale Options,Miscellaneous Expenses,,409001,334.78,BARCLAYCARD COMMERCIAL ,X00207,7,2018
Allerdale Borough Council,10204,Employee Costs,Allerdale Options,Staff Reward Payments,,409002,782.27,BARCLAYCARD COMMERCIAL ,X00207,7,2018
Allerdale Borough Council,15811,Supplies & Services,IT Services,Software Maintenance,31/10/2018,409004,317,SAGE (UK) LTD ,A01911,7,2018
Allerdale Borough Council,21150,Transfer Payments,Carnegie Trust Contribution,General Grants,10/10/2018,409005,8750,CARNEGIE THEATRE TRUST,R00015,7,2018
Allerdale Borough Council,15506,Supplies & Services,Corporate Improvement Team,Professional Services,24/10/2018,409006,12.15,LANGUAGE LINE SERVICES,A00018,7,2018
Allerdale Borough Council,10110,Employee Costs,Busy Bees Childcare Scheme,Salary Sacrifice,17/10/2018,409007,112.09,COMPUTERSHARE VOUCHER SERVICES,A00991,7,2018
Allerdale Borough Council,10110,Employee Costs,Busy Bees Childcare Scheme,Salary Sacrifice,17/10/2018,409008,2038,COMPUTERSHARE VOUCHER SERVICES,A00991,7,2018
Allerdale Borough Council,15302,Supplies & Services,Public Convenience Cleaning,Protective Clothing,10/10/2018,409009,39.14,ARCO LIMITED,A00045,7,2018
Allerdale Borough Council,15103,Supplies & Services,Workington Nature Partnership,Purchase of Materials,10/10/2018,409010,100.25,NHBS LIMITED,A02085,7,2018
Allerdale Borough Council,15501,Supplies & Services,Planning and Development,Consultants Fees,10/10/2018,409011,575.8,TREESCAPES CONSULTANCY LTD,A02385,7,2018
Allerdale Borough Council,15804,Supplies & Services,IT Services,Computer Data Lines B.T.,24/10/2018,409012,1050.83,VAIONI GROUP LTD,A02471,7,2018
Allerdale Borough Council,35106,Income,Homelessness,Dwellings Income,10/10/2018,409013,71.15,ALLERDALE ,A00342,7,2018
Allerdale Borough Council,12408,Premises,Corporate Property Maintenance,Water & Sewage,10/10/2018,409014,156.78,SCOTTISH WATER BUSINESS STREAM LTD,X00271,7,2018
Allerdale Borough Council,12408,Premises,Corporate Property Maintenance,Water & Sewage,10/10/2018,409015,306.51,SCOTTISH WATER BUSINESS STREAM LTD,X00271,7,2018
Allerdale Borough Council,12408,Premises,Corporate Property Maintenance,Water & Sewage,10/10/2018,409016,329.02,SCOTTISH WATER BUSINESS STREAM LTD,X00271,7,2018
Allerdale Borough Council,12408,Premises,Public Convenience Cleaning,Water & Sewage,10/10/2018,409017,91.1,SCOTTISH WATER BUSINESS STREAM LTD,X00271,7,2018
Allerdale Borough Council,12408,Premises,Corporate Property Maintenance,Water & Sewage,10/10/2018,409018,6.58,SCOTTISH WATER BUSINESS STREAM LTD,X00271,7,2018
Allerdale Borough Council,12408,Premises,Public Convenience Cleaning,Water & Sewage,10/10/2018,409019,170.89,SCOTTISH WATER BUSINESS STREAM LTD,X00271,7,2018
Allerdale Borough Council,12408,Premises,Public Convenience Cleaning,Water & Sewage,10/10/2018,409020,181.69,SCOTTISH WATER BUSINESS STREAM LTD,X00271,7,2018
Allerdale Borough Council,12408,Premises,Corporate Property Maintenance,Water & Sewage,10/10/2018,409021,59.46,SCOTTISH WATER BUSINESS STREAM LTD,X00271,7,2018
Allerdale Borough Council,12408,Premises,Corporate Property Maintenance,Water & Sewage,10/10/2018,409022,714.68,SCOTTISH WATER BUSINESS STREAM LTD,X00271,7,2018
Allerdale Borough Council,12402,Premises,Multi Storey Car Park Utilities & Maint,Electricity,10/10/2018,409023,1599.11,N POWER,X00015,7,2018
Allerdale Borough Council,12402,Premises,Corporate Property Maintenance,Electricity,10/10/2018,409024,1625.3,N POWER,X00015,7,2018
Allerdale Borough Council,12402,Premises,Corporate Property Maintenance,Electricity,10/10/2018,409025,521.74,N POWER,X00015,7,2018
Allerdale Borough Council,12402,Premises,Corporate Property Maintenance,Electricity,10/10/2018,409026,3025.51,N POWER,X00015,7,2018
Allerdale Borough Council,12408,Premises,Corporate Property Maintenance,Water & Sewage,10/10/2018,409027,1073.28,SCOTTISH WATER BUSINESS STREAM LTD,X00271,7,2018
Allerdale Borough Council,12408,Premises,Public Convenience Cleaning,Water & Sewage,10/10/2018,409028,923.83,SCOTTISH WATER BUSINESS STREAM LTD,X00271,7,2018
Allerdale Borough Council,12408,Premises,Multi Storey Car Park Utilities & Maint,Water & Sewage,10/10/2018,409029,602.37,SCOTTISH WATER BUSINESS STREAM LTD,X00271,7,2018
Allerdale Borough Council,12408,Premises,Corporate Property Maintenance,Water & Sewage,10/10/2018,409030,65.35,SCOTTISH WATER BUSINESS STREAM LTD,X00271,7,2018
Allerdale Borough Council,12408,Premises,Corporate Property Maintenance,Water & Sewage,10/10/2018,409031,46.33,SCOTTISH WATER BUSINESS STREAM LTD,X00271,7,2018
Allerdale Borough Council,12408,Premises,Corporate Property Maintenance,Water & Sewage,10/10/2018,409032,232.86,SCOTTISH WATER BUSINESS STREAM LTD,X00271,7,2018
Allerdale Borough Council,12408,Premises,Corporate Property Maintenance,Water & Sewage,10/10/2018,409033,4.04,SCOTTISH WATER BUSINESS STREAM LTD,X00271,7,2018
Allerdale Borough Council,12408,Premises,Corporate Property Maintenance,Water & Sewage,10/10/2018,409034,18.41,SCOTTISH WATER BUSINESS STREAM LTD,X00271,7,2018
Allerdale Borough Council,12408,Premises,Public Convenience Cleaning,Water & Sewage,10/10/2018,409035,149.28,SCOTTISH WATER BUSINESS STREAM LTD,X00271,7,2018
Allerdale Borough Council,12408,Premises,Public Convenience Cleaning,Water & Sewage,10/10/2018,409036,123.45,SCOTTISH WATER BUSINESS STREAM LTD,X00271,7,2018
Allerdale Borough Council,12408,Premises,Corporate Property Maintenance,Water & Sewage,10/10/2018,409037,573.67,SCOTTISH WATER BUSINESS STREAM LTD,X00271,7,2018
Allerdale Borough Council,12408,Premises,Public Convenience Cleaning,Water & Sewage,10/10/2018,409038,90.6,SCOTTISH WATER BUSINESS STREAM LTD,X00271,7,2018
Allerdale Borough Council,12408,Premises,Public Convenience Cleaning,Water & Sewage,10/10/2018,409039,90.72,SCOTTISH WATER BUSINESS STREAM LTD,X00271,7,2018
Allerdale Borough Council,15401,Supplies & Services,Solway Coast AONB Core Funding,General Stationery,31/10/2018,409040,3.99,VIKING DIRECT,A00828,7,2018
Allerdale Borough Council,15506,Supplies & Services,Major Incident Response,Professional Services,10/10/2018,409041,120,Redacted information - included personal information ,C00008,7,2018
Allerdale Borough Council,15302,Supplies & Services,Public Convenience Cleaning,Protective Clothing,10/10/2018,409042,-39.14,ARCO LIMITED,A00045,7,2018
Allerdale Borough Council,12408,Premises,Public Convenience Cleaning,Water & Sewage,10/10/2018,409043,156.54,SCOTTISH WATER BUSINESS STREAM LTD,X00271,7,2018
Allerdale Borough Council,12408,Premises,Corporate Property Maintenance,Water & Sewage,10/10/2018,409044,268.82,SCOTTISH WATER BUSINESS STREAM LTD,X00271,7,2018
Allerdale Borough Council,10401,Employee Costs,Housing & Health Pay Group,Agency Staff Costs,24/10/2018,409045,258.4,HAYS SPECIALIST RECRUITMENT LTD,A00280,7,2018
Allerdale Borough Council,15505,Supplies & Services,Planning and Development,Licences,24/10/2018,409046,18.02,CENTREMAPS,A00512,7,2018
Allerdale Borough Council,16003,Supplies & Services,Off-street - Owned,Security of Cash Movements,10/10/2018,409047,766.96,G4S CASH SOLUTIONS (UK) LTD,A02421,7,2018
Allerdale Borough Council,10601,Employee Costs,Internal Audit Pay Group,External Courses & Seminar Fees,24/10/2018,409048,140,CIPFA NORTHERN SECTION,A00392,7,2018
Allerdale Borough Council,15601,Supplies & Services,Corporate Postage and Stationary,Postage,10/10/2018,409049,665.55,UK MAIL GROUP PLC,A02371,7,2018
Allerdale Borough Council,15101,Supplies & Services,Solway Coast AONB Core Funding,Equipment Costs,10/10/2018,409050,821.4,PROBRAND,A00040,7,2018
Allerdale Borough Council,16101,Supplies & Services,Planning and Development,Statutory Notices,10/10/2018,409051,307.53,CUMBRIAN NEWSPAPERS LIMITED,A00869,7,2018
Allerdale Borough Council,26000,Earmarked Reserves,Comms & Marketing,Budget-Expd funded from Reserve,10/10/2018,409052,-135.6,A-HA DISTRIBUTION LTD,A01329,7,2018
Allerdale Borough Council,15101,Supplies & Services,Solway Coast AONB Core Funding,Equipment Costs,10/10/2018,409053,-712.75,PROBRAND,A00040,7,2018
Allerdale Borough Council,15101,Supplies & Services,Street Scene,Equipment Costs,10/10/2018,409054,1470,BROXAP LIMITED,C00048,7,2018
Allerdale Borough Council,15401,Supplies & Services,Building Control - Chargeable,General Stationery,24/10/2018,409055,60.95,GCS UK ASSOCIATES LTD,A02510,7,2018
Allerdale Borough Council,15500,Supplies & Services,Electoral Registration,Budget-Services,10/10/2018,409056,708,DEMOCRACY COUNTS LTD,A02563,7,2018
Allerdale Borough Council,15201,Supplies & Services,Chief Executive,Entertainment Of Visitors,,409057,355.58,BARCLAYCARD COMMERCIAL ,X00207,7,2018
Allerdale Borough Council,33118,Income,Off-street - Owned,Car Parks - Season Tickets Income,10/10/2018,409058,7.4,Redacted information - included personal information ,M01489,7,2018
Allerdale Borough Council,15502,Supplies & Services,Legal Services,Land Registry Fees,10/10/2018,409059,71.82,CUMBRIA COUNTY COUNCIL,M01490,7,2018
Allerdale Borough Council,54105,Capital Expenditure,Disabled Facilities Grants,Grants  Private Individuals (Capital),10/10/2018,409060,8783.04,K BAILIFF & SON LIMITED,X00116,7,2018
Allerdale Borough Council,54105,Capital Expenditure,Discretionary Grants,Grants  Private Individuals (Capital),10/10/2018,409061,8928.57,K BAILIFF & SON LIMITED,X00116,7,2018
Allerdale Borough Council,54105,Capital Expenditure,Disabled Facilities Grants,Grants  Private Individuals (Capital),10/10/2018,409062,5148,W W BUILDERS LIMITED,X00212,7,2018
Allerdale Borough Council,54105,Capital Expenditure,Discretionary Grants,Grants  Private Individuals (Capital),10/10/2018,409063,21919.32,PARTNERSHIP IN PROPERTY MANAGEMENT LTD,X00120,7,2018
Allerdale Borough Council,54105,Capital Expenditure,Disabled Facilities Grants,Grants  Private Individuals (Capital),10/10/2018,409064,5100,DOLPHIN STAIRLIFTS CUMBRIA,X00107,7,2018
Allerdale Borough Council,16102,Supplies & Services,Social Impact Investment Fund,Regeneration Initiatives,10/10/2018,409065,10000,BETHANYS HAIR AND BEAUTY,M01491,7,2018
Allerdale Borough Council,16350,Supplies & Services,Homelessness,Miscellaneous Expenses,10/10/2018,409066,520,Redacted information - included personal information ,M01476,7,2018
Allerdale Borough Council,54105,Capital Expenditure,Disabled Facilities Grants,Grants  Private Individuals (Capital),10/10/2018,409067,1025.31,PARTNERSHIP IN PROPERTY MANAGEMENT LTD,X00120,7,2018
Allerdale Borough Council,54105,Capital Expenditure,Disabled Facilities Grants,Grants  Private Individuals (Capital),10/10/2018,409068,1870,DOLPHIN STAIRLIFTS CUMBRIA,X00107,7,2018
Allerdale Borough Council,54105,Capital Expenditure,Discretionary Grants,Grants  Private Individuals (Capital),10/10/2018,409069,1870,DOLPHIN STAIRLIFTS CUMBRIA,X00107,7,2018
Allerdale Borough Council,54105,Capital Expenditure,Disabled Facilities Grants,Grants  Private Individuals (Capital),10/10/2018,409070,1870,DOLPHIN STAIRLIFTS CUMBRIA,X00107,7,2018
Allerdale Borough Council,15501,Supplies & Services,Planning and Development,Consultants Fees,10/10/2018,409071,8400,Redacted information - included personal information ,A02530,7,2018
Allerdale Borough Council,15508,Supplies & Services,Street Cleansing,Subscriptions,10/10/2018,409072,8605,VODAFONE,A00551,7,2018
Allerdale Borough Council,15100,Supplies & Services,Off-street - Owned,"Budget-Equipment, Furniture & Materials",24/10/2018,409073,352.5,METRIC GROUP LTD,A00568,7,2018
Allerdale Borough Council,15813,Supplies & Services,Finance and Accounting Pay Group,Software Miscellaneous,24/10/2018,409074,712.5,TOTALMOBILE LIMITED,A01712,7,2018
Allerdale Borough Council,15501,Supplies & Services,Strategic Priorities,Consultants Fees,24/10/2018,409075,69962.5,PERFECT CIRCLE JV LTD,A02478,7,2018
Allerdale Borough Council,16350,Supplies & Services,Off-street - Owned,Miscellaneous Expenses,24/10/2018,409076,1065.75,3C PAYMENT LIMITED,A02382,7,2018
Allerdale Borough Council,15501,Supplies & Services,Sports Development,Consultants Fees,24/10/2018,409077,2250,PROFESSIONAL SPORTSTURF DESIGN (NORTH WEST) LTD,A02601,7,2018
Allerdale Borough Council,12307,Premises,Corporate Property Maintenance,Fixtures and Fittings,24/10/2018,409078,175.4,KONE PLC,C00201,7,2018
Allerdale Borough Council,20300,Third Party Payments,Parks and Grounds Maintenance,Budget-Contract Services,10/10/2018,409079,56935.33,TIVOLI GROUP LTD,A02568,7,2018
Allerdale Borough Council,15508,Supplies & Services,Finance and Accounting Pay Group,Subscriptions,10/10/2018,409080,185,CIPFA BUSINESS LIMITED,A01791,7,2018
Allerdale Borough Council,15508,Supplies & Services,Finance and Accounting Pay Group,Subscriptions,10/10/2018,409081,185,CIPFA BUSINESS LIMITED,A01791,7,2018
Allerdale Borough Council,33112,Income,Planning and Development,Planning Fees Income,17/10/2018,409082,173,Redacted information - included personal information ,M01492,7,2018
Allerdale Borough Council,14105,Transport,Property Services Pay Group,"Fuel, Lubricants & Consumables",22/10/2018,409083,389.62,BP OIL UK LTD,X00022,7,2018
Allerdale Borough Council,14105,Transport,Property Services Pay Group,"Fuel, Lubricants & Consumables",22/10/2018,409084,533.29,BP OIL UK LTD ,X00022,7,2018
Allerdale Borough Council,14105,Transport,Property Services Pay Group,"Fuel, Lubricants & Consumables",22/10/2018,409085,458.14,BP OIL UK LTD ,X00022,7,2018
Allerdale Borough Council,15802,Supplies & Services,ICT Infrastructure Costs,Hardware Maintenance,17/10/2018,409086,2632.17,ELITETELE.COM,A02517,7,2018
Allerdale Borough Council,15808,Supplies & Services,IT Services,Computer Consumables,24/10/2018,409087,45.56,ELITETELE.COM,A02517,7,2018
Allerdale Borough Council,15804,Supplies & Services,IT Services,Computer Data Lines B.T.,24/10/2018,409088,45,VAIONI GROUP LTD,A02471,7,2018
Allerdale Borough Council,15811,Supplies & Services,IT Services,Software Maintenance,16/10/2018,409089,317,SAGE (UK) LTD,A01911,7,2018
Allerdale Borough Council,15502,Supplies & Services,Assistance - Housing Services,Land Registry Fees,31/10/2018,409090,3,HM LAND REGISTRY,A00505,7,2018
Allerdale Borough Council,15502,Supplies & Services,Legal Services,Land Registry Fees,31/10/2018,409091,6,HM LAND REGISTRY ,A00505,7,2018
Allerdale Borough Council,16300,Supplies & Services,Multi-storey Car Park,Budget-Miscellaneous,17/10/2018,409092,2665,FACE FACTS RESEARCH,A02592,7,2018
Allerdale Borough Council,12201,Premises,MSCP Utilities & Maint fund,Internal Maintenance,17/10/2018,409093,843,Redacted information - included personal information ,C00008,7,2018
Allerdale Borough Council,14104,Transport,Solway AONB Other Projects,Repairs & Maintenance,17/10/2018,409094,445,OPENSPACE (CUMBRIA) LTD,C00178,7,2018
Allerdale Borough Council,15501,Supplies & Services,Environmental Protection,Consultants Fees,31/10/2018,409095,260,ET ENVIRONMENTAL CONSULTANCY LTD,A02170,7,2018
Allerdale Borough Council,15505,Supplies & Services,Licensing Service,Licences,31/10/2018,409096,1000,PERSONNEL CHECKS LTD,A02599,7,2018
Allerdale Borough Council,12101,Premises,Coastal Protection and Inland Flooding,External Maintenance & Decoration,17/10/2018,409097,1484.4,ASHCROFT PLANT (CUMBRIA) LTD,C00018,7,2018
Allerdale Borough Council,15401,Supplies & Services,Benefits,General Stationery,17/10/2018,409098,648,FIRPRESS PRINTERS,A00063,7,2018
Allerdale Borough Council,54105,Capital Expenditure,Disabled Facilities Grants,Grants  Private Individuals (Capital),17/10/2018,409099,4400,DOLPHIN STAIRLIFTS CUMBRIA,X00107,7,2018
Allerdale Borough Council,54105,Capital Expenditure,Disabled Facilities Grants,Grants  Private Individuals (Capital),17/10/2018,409100,3675.61,PARTNERSHIP IN PROPERTY MANAGEMENT LTD,X00120,7,2018
Allerdale Borough Council,54105,Capital Expenditure,Disabled Facilities Grants,Grants  Private Individuals (Capital),17/10/2018,409101,7489.2,PARTNERSHIP IN PROPERTY MANAGEMENT LTD,X00120,7,2018
Allerdale Borough Council,54105,Capital Expenditure,Disabled Facilities Grants,Grants  Private Individuals (Capital),17/10/2018,409102,1814,THE EXCELLENT RAMP SYSTEM LTD,X00282,7,2018
Allerdale Borough Council,21150,Transfer Payments,Festivals & Events,General Grants,17/10/2018,409103,180,Redacted information - included personal information ,M01326,7,2018
Allerdale Borough Council,54105,Capital Expenditure,Discretionary Grants,Grants  Private Individuals (Capital),17/10/2018,409104,8943.61,L.E.A. BUILDING SERVICES LTD,X00264,7,2018
Allerdale Borough Council,21150,Transfer Payments,Festivals & Events,General Grants,17/10/2018,409105,900,KESWICK FILM CLUB,M01056,7,2018
Allerdale Borough Council,15501,Supplies & Services,Street Cleansing,Consultants Fees,17/10/2018,409106,100,MICHAEL DOUGLAS AUTO SALVAGE,A00078,7,2018
Allerdale Borough Council,15104,Supplies & Services,Bereavement Services,Supplies for Resale,24/10/2018,409107,70.8,GRANART,A00644,7,2018
Allerdale Borough Council,15506,Supplies & Services,Tenanted Properties,Professional Services,17/10/2018,409108,85,WALTON GOODLAND LTD,A01226,7,2018
Allerdale Borough Council,10114,Employee Costs,Democratic Services Pay Group,Agency to Cover Established Post,17/10/2018,409109,549.9,SYSTEM PEOPLE LTD,A01679,7,2018
Allerdale Borough Council,15603,Supplies & Services,Corporate Postage and Stationary,Franking Machine Costs,17/10/2018,409110,536.8,CORPORATE ASSET SOLUTIONS LTD,A02562,7,2018
Allerdale Borough Council,20101,Third Party Payments,Recycling,Cleansing Contract,17/10/2018,409111,20345.4,CUMBRIA WASTE MANAGEMENT LTD,A01304,7,2018
Allerdale Borough Council,10401,Employee Costs,Housing & Health Pay Group,Agency Staff Costs,31/10/2018,409112,258.4,HAYS SPECIALIST RECRUITMENT LTD,A00280,7,2018
Allerdale Borough Council,10601,Employee Costs,Training,External Courses & Seminar Fees,,409113,871.2,THE LEARN CENTRE,A02256,7,2018
Allerdale Borough Council,54105,Capital Expenditure,Disabled Facilities Grants,Grants  Private Individuals (Capital),17/10/2018,409114,5535.49,PARTNERSHIP IN PROPERTY MANAGEMENT LTD,X00120,7,2018
Allerdale Borough Council,54105,Capital Expenditure,Disabled Facilities Grants,Grants  Private Individuals (Capital),17/10/2018,409115,3229.08,K BAILIFF & SON LIMITED,X00116,7,2018
Allerdale Borough Council,15501,Supplies & Services,Building Control - Non-Chargeable,Consultants Fees,17/10/2018,409116,1118.4,ASHCROFT DEMOLITION (CUMBRIA) LTD,C00197,7,2018
Allerdale Borough Council,21150,Transfer Payments,Shop Front Improvements,General Grants,17/10/2018,409117,1620,Redacted information - included personal information ,M01469,7,2018
Allerdale Borough Council,21150,Transfer Payments,Shop Front Improvements,General Grants,17/10/2018,409118,600,Redacted information - included personal information ,M01483,7,2018
Allerdale Borough Council,21150,Transfer Payments,Shop Front Improvements,General Grants,17/10/2018,409119,900,Redacted information - included personal information ,M01493,7,2018
Allerdale Borough Council,20150,Third Party Payments,Museums,General Partnership Service Fees,17/10/2018,409120,7500,WORKINGTON HERITAGE GROUP LTD,A00339,7,2018
Allerdale Borough Council,14101,Transport,Allerdale Fleet,Vehicle Leasing,17/10/2018,409121,3600,DOBIES VAUXHALL,A00254,7,2018
Allerdale Borough Council,15507,Supplies & Services,Land Charges Service,Searches,17/10/2018,409122,1057.5,LAKE DISTRICT NATIONAL PARK AUTHORITY,A00415,7,2018
Allerdale Borough Council,10401,Employee Costs,Customer Services Pay Group,Agency Staff Costs,17/10/2018,409123,592,ADECCO RECRUITMENT,A00188,7,2018
Allerdale Borough Council,15401,Supplies & Services,Solway Coast AONB Core Funding,General Stationery,,409124,11.99,VIKING DIRECT,A00828,7,2018
Allerdale Borough Council,15802,Supplies & Services,ICT Infrastructure Costs,Hardware Maintenance,17/10/2018,409125,877.39,ELITETELE.COM,A02517,7,2018
Allerdale Borough Council,10401,Employee Costs,Customer Services Pay Group,Agency Staff Costs,17/10/2018,409126,344,ADECCO RECRUITMENT,A00188,7,2018
Allerdale Borough Council,15516,Supplies & Services,Insurances,Insurance Services,17/10/2018,409127,6750,JELF INSURANCE BROKERS LTD,A02549,7,2018
Allerdale Borough Council,15704,Supplies & Services,IT Services,Mobile Phones,17/10/2018,409128,48.21,VODAFONE,A00551,7,2018
Allerdale Borough Council,10110,Employee Costs,Commissioning Support Pay Group,Salary Sacrifice,17/10/2018,409129,2387.54,TUSKERDIRECT LTD,A02186,7,2018
Allerdale Borough Council,15702,Supplies & Services,IT Services,Line Rentals,17/10/2018,409130,10005.06,BRITISH TELECOMMUNICATIONS,X00004,7,2018
Allerdale Borough Council,35106,Income,Homelessness,Dwellings Income,17/10/2018,409131,72.66,ALLERDALE ,A00342,7,2018
Allerdale Borough Council,15804,Supplies & Services,IT Services,Computer Data Lines B.T.,24/10/2018,409132,870.63,VODAFONE,A00934,7,2018
Allerdale Borough Council,15804,Supplies & Services,IT Services,Computer Data Lines B.T.,24/10/2018,409133,3225.07,VODAFONE,A00934,7,2018
Allerdale Borough Council,16300,Supplies & Services,Off-street - Owned,Budget-Miscellaneous,24/10/2018,409134,407.5,COBALT TELEPHONE TECHNOLOGY,A01008,7,2018
Allerdale Borough Council,12402,Premises,Footways,Electricity,17/10/2018,409135,5758.55,N POWER ,X00015,7,2018
Allerdale Borough Council,12402,Premises,Car Parks Inspection & Maintenance,Electricity,17/10/2018,409136,98.37,N POWER ,X00015,7,2018
Allerdale Borough Council,12408,Premises,Corporate Property Maintenance,Water & Sewage,17/10/2018,409137,1673.54,WATERPLUS,X00011,7,2018
Allerdale Borough Council,15703,Supplies & Services,IT Services,Call Charges,31/10/2018,409138,441.76,BRITISH TELECOM PLC,A00363,7,2018
Allerdale Borough Council,15601,Supplies & Services,Corporate Postage and Stationary,Postage,17/10/2018,409139,1028,ROYAL MAIL LETTERS,X00021,7,2018
Allerdale Borough Council,12403,Premises,Homelessness,Gas,17/10/2018,409140,67.07,NPOWER,X00277,7,2018
Allerdale Borough Council,15703,Supplies & Services,IT Services,Call Charges,17/10/2018,409141,735.08,BRITISH TELECOMMUNICATIONS,X00004,7,2018
Allerdale Borough Council,35106,Income,Homelessness,Dwellings Income,17/10/2018,409142,62.28,ALLERDALE,A00342,7,2018
Allerdale Borough Council,15403,Supplies & Services,Mayor's Fund,Publications and Periodicals,17/10/2018,409143,14.4,P & D NEWSAGENTS,A00237,7,2018
Allerdale Borough Council,20304,Third Party Payments,Recycling,Contract Services-Recycling,17/10/2018,409145,378102.25,FCC ENVIRONMENT SERVICES (FOCSA),A00085,7,2018
Allerdale Borough Council,14104,Transport,Public Convenience Cleaning,Repairs & Maintenance,17/10/2018,409146,188.43,FCC ENVIRONMENT SERVICES (FOCSA),A00085,7,2018
Allerdale Borough Council,72104,Holding and Control Accounts,Debtor Control Account,Debtors (Control Account),17/10/2018,409147,6000,GEORGE FISHER LIMITED,M01494,7,2018
Allerdale Borough Council,72104,Holding and Control Accounts,Debtor Control Account,Debtors (Control Account),17/10/2018,409148,473.2,Redacted information - included personal information ,M01495,7,2018
Allerdale Borough Council,54105,Capital Expenditure,Disabled Facilities Grants,Grants  Private Individuals (Capital),17/10/2018,409149,550,CONISTON CONSULTANTS LTD,X00210,7,2018
Allerdale Borough Council,15201,Supplies & Services,Leaders Services,Entertainment Of Visitors,17/10/2018,409150,68.5,ALLERDALE BOROUGH COUNCIL,X00034,7,2018
Allerdale Borough Council,14202,Transport,Chief Executive,Hire Car and petrol,17/10/2018,409151,112.79,ENTERPRISE RENT A CAR,A01367,7,2018
Allerdale Borough Council,15101,Supplies & Services,Street Cleansing,Equipment Costs,,409152,86.78,ARCO LIMITED ,A00045,7,2018
Allerdale Borough Council,16300,Supplies & Services,Off-street - Owned,Budget-Miscellaneous,31/10/2018,409153,661,BRITISH PARKING ASSOCIATION,A00468,7,2018
Allerdale Borough Council,14104,Transport,Homelessness,Repairs & Maintenance,17/10/2018,409154,604,DOBIES VAUXHALL,A00254,7,2018
Allerdale Borough Council,15101,Supplies & Services,Housing Strategic Function,Equipment Costs,,409155,35.99,ARGOS BUSINESS SOLUTION,A00411,7,2018
Allerdale Borough Council,12201,Premises,Museums,Internal Maintenance,24/10/2018,409156,3105,ROLAND HILL (PARSONBY) LTD,C00010,7,2018
Allerdale Borough Council,16150,Supplies & Services,Solway Coast AONB Core Funding,General Promotions,17/10/2018,409157,50,ST MICHAELS CHURCH BOWNESS,M01496,7,2018
Allerdale Borough Council,12303,Premises,Corporate Property Maintenance,Window Cleaning,24/10/2018,409158,385,BORDERBRITE LTD,C00155,7,2018
Allerdale Borough Council,10401,Employee Costs,Housing & Health Pay Group,Agency Staff Costs,,409159,258.4,HAYS SPECIALIST RECRUITMENT LTD,A00280,7,2018
Allerdale Borough Council,15201,Supplies & Services,Leaders Services,Entertainment Of Visitors,24/10/2018,409160,68.7,AL'S KITCHEN LTD,A00187,7,2018
Allerdale Borough Council,14201,Transport,Members Services,Public Transport,24/10/2018,409161,160,REAYS COACHES LTD,A01280,7,2018
Allerdale Borough Council,14201,Transport,Members Services,Public Transport,24/10/2018,409162,150,REAYS COACHES LTD,A01280,7,2018
Allerdale Borough Council,12101,Premises,Car Parks Inspection & Maintenance,External Maintenance & Decoration,24/10/2018,409163,4852.75,THOMAS ARMSTRONG - CONSTRUCTION,C00003,7,2018
Allerdale Borough Council,15101,Supplies & Services,Public Building Cleaning,Equipment Costs,24/10/2018,409164,181.38,WF HYGIENE & CLEANING SUPPLIES,A01794,7,2018
Allerdale Borough Council,10601,Employee Costs,Training,External Courses & Seminar Fees,24/10/2018,409165,560,COPELAND BOROUGH COUNCIL,A00589,7,2018
Allerdale Borough Council,12201,Premises,Homelessness,Internal Maintenance,24/10/2018,409166,24.75,TRAVIS PERKINS,A00742,7,2018
Allerdale Borough Council,16300,Supplies & Services,Tourism Incentive,Budget-Miscellaneous,24/10/2018,409167,4785,CUMBRIA TOURISM,A00477,7,2018
Allerdale Borough Council,20305,Third Party Payments,Sports & Leisure Centres,Contract Services-Leisure Centres,24/10/2018,409168,51050,GREENWICH LEISURE LTD (PREV CARLISLE LEISURE),A00136,7,2018
Allerdale Borough Council,20305,Third Party Payments,Maryport Wave,Contract Services-Leisure Centres,24/10/2018,409169,19748.41,GREENWICH LEISURE LTD (PREV CARLISLE LEISURE),A00136,7,2018
Allerdale Borough Council,12305,Premises,MSCP Utilities & Maint fund,Inspections and Services,24/10/2018,409170,1877,SOLWAY INDUSTRIAL DOORS LTD,C00015,7,2018
Allerdale Borough Council,12301,Premises,Corporate Property Maintenance,Security,24/10/2018,409171,291.98,G4S SECURE SOLUTIONS,A01597,7,2018
Allerdale Borough Council,15203,Supplies & Services,Members Services,Catering Costs and Consumables,24/10/2018,409172,103.35,SIEMENS FINANCIAL SERVICES,A01307,7,2018
Allerdale Borough Council,16350,Supplies & Services,Major Incident Response,Miscellaneous Expenses,24/10/2018,409173,206.25,HALL PARK HOTEL,A00110,7,2018
Allerdale Borough Council,15508,Supplies & Services,Corporate Improvement Team,Subscriptions,,409174,2900,BARCLAYCARD COMMERCIAL,X00207,7,2018
Allerdale Borough Council,15401,Supplies & Services,Planning and Development,General Stationery,,409175,7.07,BARCLAYCARD COMMERCIAL,X00207,7,2018
Allerdale Borough Council,14200,Transport,Housing & Health Pay Group,Budget-Travel,,409176,34.79,BARCLAYCARD COMMERCIAL,X00207,7,2018
Allerdale Borough Council,21150,Transfer Payments,Festivals & Events,General Grants,24/10/2018,409177,100,THE MARYPORTERS,M01313,7,2018
Allerdale Borough Council,15506,Supplies & Services,Food and Occupational Health,Professional Services,24/10/2018,409178,235,MPM NORTH WEST LIMITED,A00113,7,2018
Allerdale Borough Council,15506,Supplies & Services,Food and Occupational Health,Professional Services,24/10/2018,409179,235,MPM NORTH WEST LIMITED,A00113,7,2018
Allerdale Borough Council,12309,Premises,Corporate Property Maintenance,Fire and Safety,24/10/2018,409181,83.46,COMPASS SERVICES GROUP,A00839,7,2018
Allerdale Borough Council,12101,Premises,Car Parks Inspection & Maintenance,External Maintenance & Decoration,24/10/2018,409182,8319,THOMAS ARMSTRONG - CONSTRUCTION,C00003,7,2018
Allerdale Borough Council,15501,Supplies & Services,Festivals & Events,Consultants Fees,24/10/2018,409183,2800,Redacted information - included personal information ,A00359,7,2018
Allerdale Borough Council,16150,Supplies & Services,Solway Coast AONB Core Funding,General Promotions,24/10/2018,409184,25,FAIRYDUST ENTERPRISES LTD,A02559,7,2018
Allerdale Borough Council,15500,Supplies & Services,Electoral Registration,Budget-Services,24/10/2018,409185,293,DEMOCRACY COUNTS LTD,A02563,7,2018
Allerdale Borough Council,15601,Supplies & Services,Electoral Registration,Postage,24/10/2018,409186,999.25,ROYAL MAIL LETTERS,X00021,7,2018
Allerdale Borough Council,15501,Supplies & Services,Revenue,Consultants Fees,,409187,310,ROSSENDALES LTD,A00964,7,2018
Allerdale Borough Council,12402,Premises,Homelessness,Electricity,24/10/2018,409188,32.99,OPUS ENERGY,X00226,7,2018
Allerdale Borough Council,12402,Premises,Homelessness,Electricity,24/10/2018,409189,23.29,OPUS ENERGY,X00226,7,2018
Allerdale Borough Council,12402,Premises,Homelessness,Electricity,24/10/2018,409190,11.27,OPUS ENERGY,X00226,7,2018
Allerdale Borough Council,12402,Premises,Homelessness,Electricity,24/10/2018,409191,13.74,OPUS ENERGY,X00226,7,2018
Allerdale Borough Council,12402,Premises,Homelessness,Electricity,24/10/2018,409192,8.32,OPUS ENERGY,X00226,7,2018
Allerdale Borough Council,12402,Premises,Homelessness,Electricity,24/10/2018,409193,14.45,OPUS ENERGY,X00226,7,2018
Allerdale Borough Council,12402,Premises,Homelessness,Electricity,24/10/2018,409194,13.6,OPUS ENERGY,X00226,7,2018
Allerdale Borough Council,10605,Employee Costs,Comms & Marketing,Travel,24/10/2018,409195,275,A & K TRAVEL LTD,A00983,7,2018
Allerdale Borough Council,15501,Supplies & Services,Building Control - Non-Chargeable,Consultants Fees,24/10/2018,409196,447,ASHCROFT DEMOLITION (CUMBRIA) LTD,C00197,7,2018
Allerdale Borough Council,15810,Supplies & Services,IT Services,Software Licences,31/10/2018,409197,665,ANCORIS LIMITED,A02605,7,2018
Allerdale Borough Council,15603,Supplies & Services,Corporate Postage and Stationary,Franking Machine Costs,,409198,471.9,FRANCOTYP POSTALIA LTD,A02187,7,2018
Allerdale Borough Council,12305,Premises,Corporate Property Maintenance,Inspections and Services,,409199,238,DORMA UK LTD,A01349,7,2018
Allerdale Borough Council,16101,Supplies & Services,Planning and Development,Statutory Notices,24/10/2018,409200,820.08,CUMBRIAN NEWSPAPERS LIMITED,A00869,7,2018
Allerdale Borough Council,16101,Supplies & Services,Planning and Development,Statutory Notices,24/10/2018,409201,701.19,CUMBRIAN NEWSPAPERS LIMITED,A00869,7,2018
Allerdale Borough Council,10401,Employee Costs,Land Charges Service,Agency Staff Costs,24/10/2018,409202,552.41,ADECCO RECRUITMENT,A00188,7,2018
Allerdale Borough Council,15601,Supplies & Services,Corporate Postage and Stationary,Postage,24/10/2018,409203,866.17,UK MAIL GROUP PLC,A02371,7,2018
Allerdale Borough Council,15507,Supplies & Services,Land Charges Service,Searches,24/10/2018,409204,322,CUMBRIA CC  ,A00066,7,2018
Allerdale Borough Council,15601,Supplies & Services,Corporate Postage and Stationary,Postage,24/10/2018,409205,923.5,UK MAIL GROUP PLC,A02371,7,2018
Allerdale Borough Council,15507,Supplies & Services,Land Charges Service,Searches,24/10/2018,409206,2222.4,CUMBRIA CC ,A00066,7,2018
Allerdale Borough Council,20300,Third Party Payments,Domestic Waste,Budget-Contract Services,24/10/2018,409207,1850,FCC ENVIRONMENT SERVICES (FOCSA),A00085,7,2018
Allerdale Borough Council,15101,Supplies & Services,Street Scene,Equipment Costs,,409208,3874,BROXAP LIMITED,C00048,7,2018
Allerdale Borough Council,10601,Employee Costs,Training,External Courses & Seminar Fees,,409209,4000,NORTHUMBRIA UNIVERSITY,A00491,7,2018
Allerdale Borough Council,12402,Premises,Tenanted Properties,Electricity,24/10/2018,409210,23.97,ENGIE POWER LIMITED ,X00286,7,2018
Allerdale Borough Council,12402,Premises,Tenanted Properties,Electricity,24/10/2018,409211,24,ENGIE POWER LIMITED ,X00286,7,2018
Allerdale Borough Council,15601,Supplies & Services,Corporate Postage and Stationary,Postage,24/10/2018,409212,40,ROYAL MAIL LETTERS,X00021,7,2018
Allerdale Borough Council,15703,Supplies & Services,IT Services,Call Charges,31/10/2018,409213,1061.53,BRITISH TELECOM PLC,A00363,7,2018
Allerdale Borough Council,12402,Premises,Public Convenience Cleaning,Electricity,24/10/2018,409214,14.39,N POWER ,X00015,7,2018
Allerdale Borough Council,12402,Premises,Public Convenience Cleaning,Electricity,24/10/2018,409215,41.2,N POWER ,X00015,7,2018
Allerdale Borough Council,12402,Premises,Public Convenience Cleaning,Electricity,24/10/2018,409216,21.7,N POWER ,X00015,7,2018
Allerdale Borough Council,12402,Premises,Public Convenience Cleaning,Electricity,24/10/2018,409217,15.83,N POWER ,X00015,7,2018
Allerdale Borough Council,12402,Premises,Public Convenience Cleaning,Electricity,24/10/2018,409218,12.23,N POWER ,X00015,7,2018
Allerdale Borough Council,12402,Premises,Public Convenience Cleaning,Electricity,24/10/2018,409219,72.28,N POWER ,X00015,7,2018
Allerdale Borough Council,12402,Premises,Public Convenience Cleaning,Electricity,24/10/2018,409220,-37.01,N POWER ,X00015,7,2018
Allerdale Borough Council,12402,Premises,Public Convenience Cleaning,Electricity,24/10/2018,409221,-37.02,N POWER ,X00015,7,2018
Allerdale Borough Council,12402,Premises,Public Convenience Cleaning,Electricity,24/10/2018,409222,-35.58,N POWER ,X00015,7,2018
Allerdale Borough Council,12402,Premises,Public Convenience Cleaning,Electricity,24/10/2018,409223,-36.77,N POWER ,X00015,7,2018
Allerdale Borough Council,12402,Premises,Public Convenience Cleaning,Electricity,24/10/2018,409224,-59.87,N POWER ,X00015,7,2018
Allerdale Borough Council,12402,Premises,Public Convenience Cleaning,Electricity,24/10/2018,409225,-22.59,N POWER ,X00015,7,2018
Allerdale Borough Council,12402,Premises,Corporate Property Maintenance,Electricity,24/10/2018,409226,88.89,N POWER ,X00015,7,2018
Allerdale Borough Council,12402,Premises,Corporate Property Maintenance,Electricity,24/10/2018,409227,10.82,N POWER ,X00015,7,2018
Allerdale Borough Council,12402,Premises,Corporate Property Maintenance,Electricity,24/10/2018,409228,35.81,N POWER ,X00015,7,2018
Allerdale Borough Council,12402,Premises,Corporate Property Maintenance,Electricity,24/10/2018,409229,6.31,N POWER ,X00015,7,2018
Allerdale Borough Council,12402,Premises,Corporate Property Maintenance,Electricity,24/10/2018,409230,155.02,N POWER ,X00015,7,2018
Allerdale Borough Council,12402,Premises,Corporate Property Maintenance,Electricity,24/10/2018,409231,97.66,N POWER ,X00015,7,2018
Allerdale Borough Council,12402,Premises,Corporate Property Maintenance,Electricity,24/10/2018,409232,5.41,N POWER ,X00015,7,2018
Allerdale Borough Council,12402,Premises,Corporate Property Maintenance,Electricity,24/10/2018,409233,6.31,N POWER ,X00015,7,2018
Allerdale Borough Council,12402,Premises,Public Convenience Cleaning,Electricity,24/10/2018,409234,12.42,N POWER ,X00015,7,2018
Allerdale Borough Council,12402,Premises,Public Convenience Cleaning,Electricity,24/10/2018,409235,14.46,N POWER ,X00015,7,2018
Allerdale Borough Council,12402,Premises,Public Convenience Cleaning,Electricity,24/10/2018,409236,14.47,N POWER ,X00015,7,2018
Allerdale Borough Council,12402,Premises,Public Convenience Cleaning,Electricity,24/10/2018,409237,13.97,N POWER ,X00015,7,2018
Allerdale Borough Council,12402,Premises,Multi Storey Car Park Utilities & Maint,Electricity,24/10/2018,409238,5.54,N POWER ,X00015,7,2018
Allerdale Borough Council,12402,Premises,Corporate Property Maintenance,Electricity,24/10/2018,409239,380.19,N POWER ,X00015,7,2018
Allerdale Borough Council,12402,Premises,Corporate Property Maintenance,Electricity,24/10/2018,409240,2.06,N POWER ,X00015,7,2018
Allerdale Borough Council,12402,Premises,Car Parks Inspection & Maintenance,Electricity,24/10/2018,409241,9.92,N POWER ,X00015,7,2018
Allerdale Borough Council,12402,Premises,Corporate Property Maintenance,Electricity,24/10/2018,409242,31.72,N POWER ,X00015,7,2018
Allerdale Borough Council,12402,Premises,Public Convenience Cleaning,Electricity,24/10/2018,409243,5.41,N POWER ,X00015,7,2018
Allerdale Borough Council,12403,Premises,Corporate Property Maintenance,Gas,24/10/2018,409244,168.12,CORONA ENERGY,X00003,7,2018
Allerdale Borough Council,12403,Premises,Corporate Property Maintenance,Gas,24/10/2018,409245,280.96,CORONA ENERGY,X00003,7,2018
Allerdale Borough Council,12403,Premises,Corporate Property Maintenance,Gas,24/10/2018,409246,198.22,CORONA ENERGY,X00003,7,2018
Allerdale Borough Council,12403,Premises,Corporate Property Maintenance,Gas,24/10/2018,409247,130.73,CORONA ENERGY,X00003,7,2018
Allerdale Borough Council,12403,Premises,Corporate Property Maintenance,Gas,24/10/2018,409248,114.83,CORONA ENERGY,X00003,7,2018
Allerdale Borough Council,12403,Premises,Corporate Property Maintenance,Gas,24/10/2018,409249,45.12,CORONA ENERGY,X00003,7,2018
Allerdale Borough Council,12403,Premises,Corporate Property Maintenance,Gas,24/10/2018,409250,156.36,CORONA ENERGY,X00003,7,2018
Allerdale Borough Council,16100,Supplies & Services,Communications and Marketing,Budget-Advertising and Promotions,31/10/2018,409251,-665.5,RICOH UK LTD,A00037,7,2018
Allerdale Borough Council,15502,Supplies & Services,Legal Services,Land Registry Fees,22/10/2018,409252,74,HM LAND REGISTRY,A00505,7,2018
Allerdale Borough Council,15502,Supplies & Services,Legal Services,Land Registry Fees,16/10/2018,409253,3,HM LAND REGISTRY,A00505,7,2018
Allerdale Borough Council,15502,Supplies & Services,Legal Services,Land Registry Fees,31/10/2018,409254,84,HM LAND REGISTRY,A00505,7,2018
Allerdale Borough Council,15502,Supplies & Services,Housing & Health Pay Group,Land Registry Fees,31/10/2018,409255,75,HM LAND REGISTRY,A00505,7,2018
Allerdale Borough Council,15502,Supplies & Services,Housing & Health Pay Group,Land Registry Fees,31/10/2018,409256,72,HM LAND REGISTRY,A00505,7,2018
Allerdale Borough Council,15502,Supplies & Services,Planning and Development,Land Registry Fees,31/10/2018,409257,6,HM LAND REGISTRY,A00505,7,2018
Allerdale Borough Council,20150,Third Party Payments,Managed Car Parks,General Partnership Service Fees,24/10/2018,409258,9891.55,MARYPORT HARBOUR & MARINA LIMITED ,A00186,7,2018
Allerdale Borough Council,20150,Third Party Payments,Managed Car Parks,General Partnership Service Fees,24/10/2018,409259,22751,KESWICK MINISTRIES,A02390,7,2018
Allerdale Borough Council,16150,Supplies & Services,Comms & Marketing,General Promotions,,409260,128.8,BARCLAYCARD COMMERCIAL,X00207,7,2018
Allerdale Borough Council,21150,Transfer Payments,Shop Front Improvements,General Grants,24/10/2018,409261,1800,Redacted information - included personal information ,M01497,7,2018
Allerdale Borough Council,21150,Transfer Payments,Shop Front Improvements,General Grants,24/10/2018,409262,522,Redacted information - included personal information ,M01498,7,2018
Allerdale Borough Council,21150,Transfer Payments,Shop Front Improvements,General Grants,24/10/2018,409263,522,Redacted information - included personal information ,M01500,7,2018
Allerdale Borough Council,21150,Transfer Payments,Shop Front Improvements,General Grants,24/10/2018,409264,900,Redacted information - included personal information ,M01501,7,2018
Allerdale Borough Council,21150,Transfer Payments,Shop Front Improvements,General Grants,24/10/2018,409265,1800,Redacted information - included personal information ,M01502,7,2018
Allerdale Borough Council,21150,Transfer Payments,Shop Front Improvements,General Grants,24/10/2018,409266,432,Redacted information - included personal information ,M01503,7,2018
Allerdale Borough Council,15512,Supplies & Services,Major Incident Response,Kennelling,24/10/2018,409267,25,Redacted information - included personal information ,M01504,7,2018
Allerdale Borough Council,10201,Employee Costs,Property Services Pay Group,Long Service Awards,24/10/2018,409268,420,Redacted information - included personal information ,M01505,7,2018
Allerdale Borough Council,33121,Income,Off-street - Owned,Excess Charges - Car Parks Income,24/10/2018,409269,25,Redacted information - included personal information ,M01506,7,2018
Allerdale Borough Council,12201,Premises,MSCP Utilities & Maint fund,Internal Maintenance,24/10/2018,409270,498,Redacted information - included personal information ,C00008,7,2018
Allerdale Borough Council,14202,Transport,Internal Audit Pay Group,Hire Car and petrol,24/10/2018,409271,51.55,ENTERPRISE RENT A CAR,A01367,7,2018
Allerdale Borough Council,16300,Supplies & Services,Sports Development,Budget-Miscellaneous,24/10/2018,409272,20000,KESWICK TOWN COUNCIL,A00253,7,2018
Allerdale Borough Council,16100,Supplies & Services,Communications and Marketing,Budget-Advertising and Promotions,31/10/2018,409273,665.5,RICOH UK LTD,A00037,7,2018
Allerdale Borough Council,16150,Supplies & Services,Solway AONB Other Projects,General Promotions,,409274,33.93,ARCO LIMITED,A00045,7,2018
Allerdale Borough Council,15506,Supplies & Services,Environmental Protection,Professional Services,,409275,1771.17,UNITED UTILITIES PLC,A01657,7,2018
Allerdale Borough Council,12101,Premises,MSCP Utilities & Maint fund,External Maintenance & Decoration,24/10/2018,409276,910,Redacted information - included personal information ,C00008,7,2018
Allerdale Borough Council,15203,Supplies & Services,Members Services,Catering Costs and Consumables,24/10/2018,409277,79.2,AL'S KITCHEN LTD,A00187,7,2018
Allerdale Borough Council,16150,Supplies & Services,Remembering the Solway,General Promotions,24/10/2018,409278,37.5,RHYTHM AV LTD,A01139,7,2018
Allerdale Borough Council,15508,Supplies & Services,Estates,Subscriptions,24/10/2018,409279,2410,CIPFA BUSINESS LIMITED,A01791,7,2018
Allerdale Borough Council,15508,Supplies & Services,Estates,Subscriptions,24/10/2018,409280,1245,CIPFA BUSINESS LIMITED,A01791,7,2018
Allerdale Borough Council,15101,Supplies & Services,Homelessness,Equipment Costs,24/10/2018,409281,80.26,ALLERDALE BOROUGH COUNCIL,X00034,7,2018
Allerdale Borough Council,15502,Supplies & Services,Revenue,Land Registry Fees,23/10/2018,409282,9,HM LAND REGISTRY ,A00505,7,2018
Allerdale Borough Council,33113,Income,Building Control - Chargeable,Building Control Fees Income,31/10/2018,409283,600.67,IVY HOUSE CUMBRIA LTD,M01507,7,2018
Allerdale Borough Council,16102,Supplies & Services,Tourism Incentive,Regeneration Initiatives,31/10/2018,409284,200,KESWICK TOURISM ASSOCIATION,A01882,7,2018
Allerdale Borough Council,10601,Employee Costs,Homelessness,External Courses & Seminar Fees,,409285,203.6,BARCLAYCARD COMMERCIAL,X00207,7,2018
Allerdale Borough Council,16150,Supplies & Services,Solway Coast AONB Core Funding,General Promotions,31/10/2018,409299,460,ANDREW LATHWELL DESIGN LTD,A02464,7,2018
Allerdale Borough Council,10114,Employee Costs,Democratic Services Pay Group,Agency to Cover Established Post,31/10/2018,409300,549.9,SYSTEM PEOPLE LTD,A01679,7,2018
Allerdale Borough Council,15402,Supplies & Services,IT Services - Corporate Printers,Photocopier Charges,,409301,103.17,KONICA MINOLTA BUSINESS SOLUTIONS UK LTD,A01556,7,2018
Allerdale Borough Council,10202,Employee Costs,Health and Safety,Medical Screening,31/10/2018,409302,85,SPECSAVERS,A00026,7,2018
Allerdale Borough Council,20150,Third Party Payments,Footways,General Partnership Service Fees,31/10/2018,409303,7278.27,CUMBRIA CC ,A00066,7,2018
Allerdale Borough Council,15506,Supplies & Services,Communications and Marketing,Professional Services,,409304,1200,BIRCHAM DYSON BELL LLP,A02323,7,2018
Allerdale Borough Council,12203,Premises,Corporate Property Maintenance,Plumbing and Heating Maintenance,31/10/2018,409305,125,O'CONNELL & BEAN (MECH&ELEC) LTD,C00078,7,2018
Allerdale Borough Council,10401,Employee Costs,Housing & Health Pay Group,Agency Staff Costs,,409306,258.4,HAYS SPECIALIST RECRUITMENT LTD,A00280,7,2018
Allerdale Borough Council,15501,Supplies & Services,Building Control - Non-Chargeable,Consultants Fees,31/10/2018,409307,400,WHINBARROW DESIGN SERVICES,A00311,7,2018
Allerdale Borough Council,16101,Supplies & Services,Planning and Development,Statutory Notices,,409308,369.04,NEWSQUEST MEDIA GROUP,A02348,7,2018
Allerdale Borough Council,14202,Transport,Localities & Partnerships,Hire Car and petrol,31/10/2018,409309,107.38,ENTERPRISE RENT A CAR,A01367,7,2018
Allerdale Borough Council,15101,Supplies & Services,Solway AONB Other Projects,Equipment Costs,,409310,484.6,THE HELPING HAND COMPANY,A00897,7,2018
Allerdale Borough Council,14101,Transport,Mayoral Services,Vehicle Leasing,31/10/2018,409311,100,DJH SILLOTH LTD T/A SOLWAY PRIVATE HIRE,M00890,7,2018
Allerdale Borough Council,14101,Transport,Mayoral Services,Vehicle Leasing,31/10/2018,409312,60,DJH SILLOTH LTD T/A SOLWAY PRIVATE HIRE,M00890,7,2018
Allerdale Borough Council,16350,Supplies & Services,Mayor's Fund,Miscellaneous Expenses,31/10/2018,409313,129.5,PBA20 POPPY APPEAL WORKINGTON RBL,M00593,7,2018
Allerdale Borough Council,15811,Supplies & Services,IT Services,Software Maintenance,,409314,38000,ABAVUS LIMITED,A02252,7,2018
Allerdale Borough Council,15303,Supplies & Services,Food and Occupational Health,Laundry,,409315,22,THE LAUNDRY STUDIO,A00225,7,2018
Allerdale Borough Council,16102,Supplies & Services,Social Impact Investment Fund,Regeneration Initiatives,31/10/2018,409316,250000,CUMBRIA COMM ASSET & REINVESTMENT TRUST,M01508,7,2018
Allerdale Borough Council,21150,Transfer Payments,Shop Front Improvements,General Grants,31/10/2018,409317,900,Redacted information - included personal information ,M01509,7,2018
Allerdale Borough Council,26000,Earmarked Reserves,Transfer of Land Charges Data,Budget-Expd funded from Reserve,31/10/2018,409318,552.41,ADECCO RECRUITMENT,A00188,7,2018
Allerdale Borough Council,15506,Supplies & Services,Museums,Professional Services,,409319,1500,ARTLINK TRANSPORT & STORAGE LTD,A02362,7,2018
Allerdale Borough Council,12202,Premises,Tenanted Properties,Electrical Repairs and Service,31/10/2018,409320,90,JJ GROUP (CONTRACTING) LTD,C00038,7,2018
Allerdale Borough Council,15506,Supplies & Services,Universal Credit,Professional Services,31/10/2018,409321,20,CITIZENS ADVICE BUREAU,A01181,7,2018
Allerdale Borough Council,15506,Supplies & Services,Universal Credit,Professional Services,31/10/2018,409322,50,CITIZENS ADVICE BUREAU,A01181,7,2018
Allerdale Borough Council,12203,Premises,Public Convenience Cleaning,Plumbing and Heating Maintenance,31/10/2018,409323,444,Redacted information - included personal information ,C00008,7,2018
Allerdale Borough Council,26000,Earmarked Reserves,Transfer of Land Charges Data,Budget-Expd funded from Reserve,31/10/2018,409324,522.55,ADECCO RECRUITMENT,A00188,7,2018
Allerdale Borough Council,26000,Earmarked Reserves,Transfer of Land Charges Data,Budget-Expd funded from Reserve,31/10/2018,409325,552.41,ADECCO RECRUITMENT,A00188,7,2018
Allerdale Borough Council,12305,Premises,Corporate Property Maintenance,Inspections and Services,,409326,19.95,PHS GROUP LTD,C00028,7,2018
Allerdale Borough Council,15501,Supplies & Services,Homelessness,Consultants Fees,31/10/2018,409327,40,MARYPORT HEALTH SERVICE,A00421,7,2018
Allerdale Borough Council,16101,Supplies & Services,Planning and Development,Statutory Notices,,409328,315,NEWSQUEST MEDIA GROUP,A02348,7,2018
Allerdale Borough Council,10502,Employee Costs,Corporate Recruitment,Interview Expenses,31/10/2018,409329,420,SUNDERLAND CITY COUNCIL,A00979,7,2018
Allerdale Borough Council,15501,Supplies & Services,Estates,Consultants Fees,31/10/2018,409330,8100,BLOOM PROCUREMENT SERVICES LTD,A02360,7,2018
Allerdale Borough Council,15501,Supplies & Services,Strategic Priorities,Consultants Fees,,409331,43962.5,PERFECT CIRCLE JV LTD,A02478,7,2018
Allerdale Borough Council,12402,Premises,Multi Storey Car Park Utilities & Maint,Electricity,,409332,220,NPOWER LIMITED,X00250,7,2018
Allerdale Borough Council,15808,Supplies & Services,IT Services,Computer Consumables,31/10/2018,409333,142,PMD MAGNETICS,A01086,7,2018
Allerdale Borough Council,16300,Supplies & Services,Tourism Incentive,Budget-Miscellaneous,31/10/2018,409334,232.5,GREENWICH LEISURE LTD ,A00136,7,2018
Allerdale Borough Council,15402,Supplies & Services,IT Services - Corporate Printers,Photocopier Charges,31/10/2018,409335,7.41,KONICA MINOLTA BUSINESS SOLUTIONS UK LTD,A01556,7,2018
Allerdale Borough Council,12309,Premises,Corporate Property Maintenance,Fire and Safety,31/10/2018,409336,307.59,ORIAN SOLUTIONS LTD,A01814,7,2018
Allerdale Borough Council,15808,Supplies & Services,IT Services,Computer Consumables,31/10/2018,409337,-7,PMD MAGNETICS,A01086,7,2018
Allerdale Borough Council,14101,Transport,Mayoral Services,Vehicle Leasing,31/10/2018,409338,160,DJH SILLOTH LTD ,M00890,7,2018
Allerdale Borough Council,10204,Employee Costs,Allerdale Options,Staff Reward Payments,31/10/2018,409339,226.04,ST JOSEPHS CATHOLIC SCHOOL,A01535,7,2018
Allerdale Borough Council,26000,Earmarked Reserves,Licensing Service Re-design,Budget-Expd funded from Reserve,,409340,1603.05,ARGOS BUSINESS SOLUTION-STORE COLLECTION,A00411,7,2018
Allerdale Borough Council,12402,Premises,Food and Occupational Health,Electricity,31/10/2018,409341,19.25,BRITISH GAS,X00039,7,2018
Allerdale Borough Council,12402,Premises,Food and Occupational Health,Electricity,31/10/2018,409342,17.81,BRITISH GAS,X00039,7,2018
Allerdale Borough Council,12402,Premises,Food and Occupational Health,Electricity,31/10/2018,409343,18.38,BRITISH GAS,X00039,7,2018
Allerdale Borough Council,12305,Premises,Multi Storey Car Park Utilities & Maint,Inspections and Services,31/10/2018,409344,94,REFRIGERATION (MITTON) LTD,C00012,7,2018
Allerdale Borough Council,12301,Premises,Corporate Property Maintenance,Security,31/10/2018,409345,90,COMPASS SERVICES GROUP,A00839,7,2018
Allerdale Borough Council,33118,Income,Off-street - Owned,Car Parks - Season Tickets Income,31/10/2018,409346,7.4,Redacted information - included personal information ,M01510,7,2018
Allerdale Borough Council,54105,Capital Expenditure,Disabled Facilities Grants,Grants  Private Individuals (Capital),31/10/2018,409347,3576.73,PARTNERSHIP IN PROPERTY MANAGEMENT LTD,X00120,7,2018
Allerdale Borough Council,54105,Capital Expenditure,Disabled Facilities Grants,Grants  Private Individuals (Capital),31/10/2018,409348,3368.7,PARTNERSHIP IN PROPERTY MANAGEMENT LTD,X00120,7,2018
Allerdale Borough Council,54105,Capital Expenditure,Disabled Facilities Grants,Grants  Private Individuals (Capital),31/10/2018,409349,5322.24,PARTNERSHIP IN PROPERTY MANAGEMENT LTD,X00120,7,2018
Allerdale Borough Council,54105,Capital Expenditure,Disabled Facilities Grants,Grants  Private Individuals (Capital),31/10/2018,409350,2420.66,PARTNERSHIP IN PROPERTY MANAGEMENT LTD,X00120,7,2018
Allerdale Borough Council,54105,Capital Expenditure,Disabled Facilities Grants,Grants  Private Individuals (Capital),31/10/2018,409351,11607,PARTNERSHIP IN PROPERTY MANAGEMENT LTD,X00120,7,2018
Allerdale Borough Council,54105,Capital Expenditure,Discretionary Grants,Grants  Private Individuals (Capital),31/10/2018,409352,8928.57,FEARON BUILDERS,C00069,7,2018
Allerdale Borough Council,54105,Capital Expenditure,Disabled Facilities Grants,Grants  Private Individuals (Capital),31/10/2018,409353,250,CONISTON CONSULTANTS LTD,X00210,7,2018
Allerdale Borough Council,54105,Capital Expenditure,Disabled Facilities Grants,Grants  Private Individuals (Capital),31/10/2018,409354,2293.63,MAYSON BROS LTD,X00132,7,2018
Allerdale Borough Council,54105,Capital Expenditure,Cluster of Empty Homes,Grants  Private Individuals (Capital),31/10/2018,409355,1231.25,Redacted information - included personal information ,X00274,7,2018
Allerdale Borough Council,12202,Premises,Corporate Property Maintenance,Electrical Repairs and Service,31/10/2018,409356,702.7,JJ GROUP (CONTRACTING) LTD,C00038,7,2018
Allerdale Borough Council,20150,Third Party Payments,Managed Car Parks,General Partnership Service Fees,31/10/2018,409357,91400.35,E H BOOTH & CO LIMITED,A00919,7,2018
Allerdale Borough Council,15301,Supplies & Services,Community Services Pay Group,Uniforms,,409358,2277.1,KELTIC,A00017,7,2018
Allerdale Borough Council,15405,Supplies & Services,Recycling,Use of External Printers,31/10/2018,409359,435,FIRPRESS PRINTERS,A00063,7,2018
Allerdale Borough Council,20300,Third Party Payments,Parks and Grounds Maintenance,Budget-Contract Services,,409360,56935.33,TIVOLI GROUP LTD,A02568,7,2018
Allerdale Borough Council,16302,Supplies & Services,Domestic Waste,Room Hire,31/10/2018,409361,1180.5,ST MICHAELS CHURCH ,A00452,7,2018
Allerdale Borough Council,20100,Third Party Payments,Economic Regeneration,Budget-Partnership Services,31/10/2018,409362,2000,CUMBRIA CC ,A00066,7,2018
Allerdale Borough Council,20150,Third Party Payments,Corporate Property Maintenance,General Partnership Service Fees,,409363,271.14,ORIAN SOLUTIONS LTD,A01814,7,2018
Allerdale Borough Council,75103,Holding and Control Accounts,Payroll Suspense Account,PAYROLL October 2018 Travel & Subsistence  ,,,12840.79,INLAND REVENUE,X00038,7,2018
